fUSD/lending_fUSD_20250916
["ID","MTS","AMOUNT","RATE_DAILY","PERIOD"]
[385770028,1758030660599,-708.1,0.00030136,6]
[385770030,1758030660610,-400.0,0.00030136,6]
[385770031,1758030660621,-402.55848499,0.00030136,6]
[385770033,1758030660631,-744.62,0.00030136,6]
[385770036,1758030660642,-400.0,0.00030136,6]
[385770037,1758030660652,-400.0,0.00030136,6]
[385770040,1758030660663,-400.0,0.00030136,6]
[385770042,1758030660673,-400.0,0.00030136,6]
[385770044,1758030660683,-403.73967252,0.00030136,6]
[385770046,1758030660693,-400.0,0.00030136,6]
[385770048,1758030660703,-552.08,0.00030136,6]
[385770050,1758030660713,-402.45309793,0.00030136,6]
[385770052,1758030660723,-157.52665324,0.00030136,6]
[385770054,1758030660732,-400.0,0.00030136,6]
[385770056,1758030660742,-400.0,0.00030136,6]
[385770058,1758030660752,-400.0,0.00030136,6]
[385770060,1758030660761,-405.93,0.00030136,6]
[385770062,1758030660771,-400.0,0.00030136,6]
[385770064,1758030660781,-654.15,0.00030136,6]
[385770065,1758030660791,-400.0,0.00030136,6]
[385770067,1758030660801,-544.51,0.00030136,6]
[385770070,1758030660811,-400.0,0.00030136,6]
[385770072,1758030660821,-400.0,0.00030136,6]
[385770074,1758030660830,-753.49,0.00030136,6]
[385770075,1758030660846,-400.0,0.00030136,6]
[385770078,1758030660856,-673.54,0.00030136,6]
[385770080,1758030660865,-636.0,0.00030136,6]
[385770081,1758030660875,-400.0,0.00030136,6]
[385770083,1758030660884,-400.0,0.00030136,6]
[385770085,1758030660894,-400.0,0.00030136,6]
[385770088,1758030660906,-400.0,0.00030136,6]
[385770090,1758030660915,-403.7418632,0.00030136,6]
[385770091,1758030660925,-1275.62,0.00030136,6]
[385770094,1758030660934,-1115.63,0.00030136,6]
[385770096,1758030660944,-400.0,0.00030136,6]
[385770098,1758030660954,-400.0,0.00030136,6]
[385770100,1758030660963,-400.0,0.00030136,6]
[385770102,1758030660973,-400.0,0.00030136,6]
[385770104,1758030660983,-400.0,0.00030136,6]
[385770106,1758030660992,-400.0,0.00030136,6]
[385770108,1758030661001,-400.0,0.00030136,6]
[385770110,1758030661011,-400.0,0.00030136,6]
[385770112,1758030661020,-400.0,0.00030136,6]
[385770113,1758030661029,-400.0,0.00030136,6]
[385770114,1758030661039,-400.0,0.00030136,6]
[385770115,1758030661048,-400.0,0.00030136,6]
[385770116,1758030661058,-400.0,0.00030136,6]
[385770117,1758030661067,-500.0,0.00030136,6]
[385770118,1758030661076,-411.44197732,0.00030136,6]
[385770120,1758030661090,-2737.65,0.00030136,6]
[385770122,1758030661099,-400.0,0.00030136,6]
[385770124,1758030661108,-979.58,0.00030136,6]
[385770126,1758030661117,-972.51,0.00030136,6]
[385770128,1758030661126,-400.0,0.00030136,6]
[385770130,1758030661136,-424.51,0.00030136,6]
[385770132,1758030661145,-400.27294654,0.00030136,6]
[385770134,1758030661154,-402.32770161,0.00030136,6]
[385770136,1758030661163,-400.0,0.00030136,6]
[385770138,1758030661172,-1504.81,0.00030136,6]
[385770140,1758030661182,-400.0,0.00030136,6]
[385770142,1758030661191,-400.0,0.00030136,6]
[385770143,1758030661200,-409.45045264,0.00030136,6]
[385770146,1758030661210,-967.93,0.00030136,6]
[385770148,1758030661219,-400.0,0.00030136,6]
[385770150,1758030661229,-400.0,0.00030136,6]
[385770152,1758030661238,-402.49418724,0.00030136,6]
[385770154,1758030661247,-400.0,0.00030136,6]
[385770156,1758030661257,-400.0,0.00030136,6]
[385770158,1758030661265,-487.03,0.00030136,6]
[385770160,1758030661274,-400.72551005,0.00030136,6]
[385770162,1758030661284,-400.0,0.00030136,6]
[385770164,1758030661293,-400.0,0.00030136,6]
[385770166,1758030661302,-400.0,0.00030136,6]
[385770168,1758030661312,-450.27,0.00030136,6]
[385770170,1758030661321,-400.0,0.00030136,6]
[385770172,1758030661330,-610.52,0.00030136,6]
[385770174,1758030661345,-400.0,0.00030136,6]
[385770176,1758030661356,-400.0,0.00030136,6]
[385770178,1758030661365,-500.0,0.00030136,6]
[385770180,1758030661374,-400.0,0.00030136,6]
[385770182,1758030661384,-500.0,0.00030136,6]
[385770184,1758030661392,-500.0,0.00030136,6]
[385770186,1758030661401,-500.0,0.00030136,6]
[385770188,1758030661411,-500.0,0.00030136,6]
[385770190,1758030661420,-500.0,0.00030136,6]
[385770192,1758030661429,-400.0,0.00030136,6]
[385770194,1758030661439,-1142.34,0.00030136,6]
[385770196,1758030661448,-234.35835262,0.00030136,6]
[385770198,1758030661458,-272.42009037,0.00030136,6]
[385770200,1758030661468,-675.11,0.00030136,6]
[385770202,1758030661477,-400.0,0.00030136,6]
[385770204,1758030661486,-400.0,0.00030136,6]
[385770206,1758030661495,-400.0,0.00030136,6]
[385770208,1758030661504,-400.0,0.00030136,6]
[385770210,1758030661514,-400.0,0.00030136,6]
[385770212,1758030661523,-400.0,0.00030136,6]
[385770214,1758030661531,-1186.41,0.00030136,6]
[385770216,1758030661540,-401.20520922,0.00030136,6]
[385770218,1758030661548,-741.03,0.00030136,6]
[385770220,1758030661559,-400.0,0.00030136,6]
[385770222,1758030661568,-400.0,0.00030136,6]
[385770224,1758030661577,-400.0,0.00030136,6]
[385770225,1758030661591,-400.0,0.00030136,6]
[385770227,1758030661600,-500.0,0.00030136,6]
[385770229,1758030661610,-400.0,0.00030136,6]
[385770232,1758030661619,-500.0,0.00030136,6]
[385770234,1758030661628,-400.0,0.00030136,6]
[385770235,1758030661637,-679.66,0.00030136,6]
[385770237,1758030661647,-1060.26,0.00030136,6]
[385770239,1758030661656,-601.84,0.00030136,6]
[385770241,1758030661666,-582.68,0.00030136,6]
[385770243,1758030661676,-400.0,0.00030136,6]
[385770245,1758030661685,-400.0,0.00030136,6]
[385770248,1758030661695,-400.56014434,0.00030136,6]
[385770249,1758030661704,-400.0,0.00030136,6]
[385770251,1758030661714,-400.0,0.00030136,6]
[385770253,1758030661723,-400.0,0.00030136,6]
[385770256,1758030661733,-521.79,0.00030136,6]
[385770258,1758030661742,-679.48,0.00030136,6]
[385770260,1758030661752,-400.88524202,0.00030136,6]
[385770262,1758030661762,-2829.34,0.00030136,6]
[385770264,1758030661771,-400.0,0.00030136,6]
[385770266,1758030661780,-475.17,0.00030136,6]
[385770268,1758030661790,-400.0,0.00030136,6]
[385770270,1758030661799,-400.0,0.00030136,6]
[385770272,1758030661809,-400.0,0.00030136,6]
[385770274,1758030661819,-400.0,0.00030136,6]
[385770276,1758030661829,-415.32,0.00030136,6]
[385770278,1758030661844,-400.0,0.00030136,6]
[385770280,1758030661853,-400.0,0.00030136,6]
[385770282,1758030661862,-400.0,0.00030136,6]
[385770284,1758030661872,-403.33521305,0.00030136,6]
[385770286,1758030661882,-1230.92,0.00030136,6]
[385770288,1758030661892,-400.0,0.00030136,6]
[385770290,1758030661905,-477.62553016,0.00030136,6]
[385770292,1758030661915,-400.0,0.00030136,6]
[385770294,1758030661924,-400.0,0.00030136,6]
[385770296,1758030661935,-859.59,0.00030136,6]
[385770298,1758030661945,-938.44,0.00030136,6]
[385770300,1758030661955,-400.0,0.00030136,6]
[385770302,1758030661964,-400.0,0.00030136,6]
[385770304,1758030661974,-400.05644363,0.00030136,6]
[385770306,1758030661984,-403.39045703,0.00030136,6]
[385770308,1758030661994,-400.0,0.00030136,6]
[385770310,1758030662003,-718.87,0.00030136,6]
[385770312,1758030662012,-589.52,0.00030136,6]
[385770314,1758030662022,-834.32,0.00030136,6]
[385770315,1758030662032,-1036.52,0.00030136,6]
[385770316,1758030662041,-400.0,0.00030136,6]
[385770317,1758030662051,-662.91,0.00030136,6]
[385770318,1758030662061,-400.0,0.00030136,6]
[385770319,1758030662071,-500.0,0.00030136,2]
[385770320,1758030662082,-478.98,0.00030136,6]
[385770322,1758030662096,-400.0,0.00030136,6]
[385770324,1758030662106,-400.0,0.00030136,6]
[385770326,1758030662116,-400.0,0.00030136,6]
[385770328,1758030662127,-400.0,0.00030136,6]
[385770330,1758030662137,-471.62,0.00030136,6]
[385770331,1758030662147,-400.0,0.00030136,6]
[385770333,1758030662157,-400.0,0.00030136,6]
[385770335,1758030662167,-400.0,0.00030136,6]
[385770337,1758030662177,-400.0,0.00030136,6]
[385770339,1758030662187,-547.21,0.00030136,6]
[385770341,1758030662196,-636.54,0.00030136,6]
[385770362,1758030662385,-400.0,0.00030136,6]
[385770364,1758030662395,-1485.81,0.00030136,6]
[385770366,1758030662405,-400.0,0.00030136,6]
[385770368,1758030662414,-840.26,0.00030136,6]
[385770370,1758030662424,-400.0,0.00030136,6]
[385770372,1758030662433,-598.17,0.00030136,2]
[385770374,1758030662442,-598.17,0.00030136,2]
[385770376,1758030662452,-300.0,0.00030136,6]
[385770378,1758030662462,-598.17,0.00030136,2]
[385770380,1758030662472,-598.17,0.00030136,2]
[385770382,1758030662482,-598.17,0.00030136,2]
[385770384,1758030662492,-400.0,0.00030136,6]
[385770386,1758030662502,-704.17,0.00030136,6]
[385770388,1758030662511,-598.17,0.00030136,2]
[385770390,1758030662520,-598.17,0.00030136,2]
[385770392,1758030662530,-598.17,0.00030136,2]
[385770393,1758030662539,-598.17,0.00030136,2]
[385770395,1758030662548,-400.0,0.00030136,6]
[385770396,1758030662557,-400.0,0.00030136,6]
[385770398,1758030662567,-598.17,0.00030136,2]
[385770399,1758030662576,-598.17,0.00030136,2]
[385770401,1758030662589,-598.17,0.00030136,2]
[385770402,1758030662598,-500.0,0.00030136,6]
[385770404,1758030662607,-598.17,0.00030136,2]
[385770405,1758030662616,-500.0,0.00030136,6]
[385770407,1758030662626,-954.22,0.00030136,6]
[385770408,1758030662634,-401.43716805,0.00030136,6]
[385770410,1758030662644,-598.17,0.00030136,2]
[385770411,1758030662653,-1126.57,0.00030136,6]
[385770413,1758030662663,-500.0,0.00030136,6]
[385770415,1758030662672,-598.17,0.00030136,2]
[385770416,1758030662681,-500.0,0.00030136,6]
[385770418,1758030662691,-598.17,0.00030136,2]
[385770419,1758030662700,-598.17,0.00030136,2]
[385770421,1758030662710,-500.0,0.00030136,6]
[385770422,1758030662722,-409.62514125,0.00030136,6]
[385770424,1758030662731,-598.17,0.00030136,2]
[385770425,1758030662741,-500.0,0.00030136,6]
[385770427,1758030662750,-400.0,0.00030136,6]
[385770428,1758030662759,-500.0,0.00030136,6]
[385770430,1758030662768,-968.13,0.00030136,6]
[385770432,1758030662778,-400.0,0.00030136,6]
[385770433,1758030662788,-500.0,0.00030136,6]
[385770435,1758030662797,-400.0,0.00030136,6]
[385770437,1758030662807,-500.0,0.00030136,6]
[385770438,1758030662816,-512.54630126,0.00030136,6]
[385770440,1758030662825,-400.0,0.00030136,6]
[385770441,1758030662838,-400.0,0.00030136,6]
[385770443,1758030662847,-400.0,0.00030136,6]
[385770445,1758030662856,-400.0,0.00030136,6]
[385770446,1758030662866,-554.6,0.00030136,6]
[385770448,1758030662875,-500.0,0.00030136,6]
[385770450,1758030662884,-400.0,0.00030136,6]
[385770451,1758030662893,-400.0,0.00030136,6]
[385770453,1758030662902,-500.0,0.00030136,6]
[385770454,1758030662913,-1220.75,0.00030136,6]
[385770456,1758030662923,-500.0,0.00030136,6]
[385770458,1758030662932,-400.0,0.00030136,6]
[385770459,1758030662941,-500.0,0.00030136,6]
[385770461,1758030662950,-500.0,0.00030136,6]
[385770463,1758030662960,-512.45452144,0.00030136,6]
[385770464,1758030662969,-744.62,0.00030136,6]
[385770466,1758030662978,-845.16,0.00030136,6]
[385770467,1758030662987,-400.0,0.00030136,6]
[385770469,1758030662997,-458.66,0.00030136,6]
[385770471,1758030663007,-400.0,0.00030136,6]
[385770472,1758030663016,-400.0,0.00030136,6]
[385770474,1758030663026,-421.02,0.00030136,6]
[385770476,1758030663035,-423.58,0.00030136,6]
[385770477,1758030663044,-400.0,0.00030136,6]
[385770479,1758030663054,-400.0,0.00030136,6]
[385770481,1758030663063,-400.0,0.00030136,6]
[385770482,1758030663072,-400.0,0.00030136,6]
[385770484,1758030663086,-2204.67,0.00030136,6]
[385770486,1758030663100,-400.0,0.00030136,6]
[385770487,1758030663110,-598.99,0.00030136,6]
[385770489,1758030663120,-452.6,0.00030136,6]
[385770490,1758030663131,-400.0,0.00030136,6]
[385770492,1758030663141,-412.79,0.00030136,6]
[385770494,1758030663152,-400.0,0.00030136,6]
[385770495,1758030663163,-400.0,0.00030136,6]
[385770497,1758030663174,-562.96,0.00030136,6]
[385770499,1758030663185,-409.98998161,0.00030136,6]
[385770500,1758030663195,-634.15,0.00030136,6]
[385770502,1758030663205,-400.0,0.00030136,6]
[385770503,1758030663214,-682.63,0.00030136,6]
[385770505,1758030663224,-595.96,0.00030136,6]
[385770507,1758030663234,-618.11,0.00030136,6]
[385770508,1758030663244,-400.0,0.00030136,6]
[385770510,1758030663254,-400.0,0.00030136,6]
[385770511,1758030663264,-400.0,0.00030136,6]
[385770512,1758030663273,-400.0,0.00030136,6]
[385770513,1758030663283,-400.0,0.00030136,6]
[385770514,1758030663293,-400.0,0.00030136,6]
[385770515,1758030663303,-865.38,0.00030136,6]
[385770516,1758030663313,-400.0,0.00030136,6]
[385770517,1758030663323,-400.0,0.00030136,6]
[385770518,1758030663332,-639.83,0.00030136,6]
[385770519,1758030663349,-400.0,0.00030136,6]
[385770521,1758030663359,-499.48,0.00030136,6]
[385770523,1758030663369,-400.0,0.00030136,6]
[385770525,1758030663379,-449.52,0.00030136,6]
[385770527,1758030663390,-400.0,0.00030136,6]
[385770529,1758030663400,-400.0,0.00030136,6]
[385770531,1758030663410,-401.19545008,0.00030136,6]
[385770533,1758030663420,-400.0,0.00030136,6]
[385770535,1758030663430,-1087.0,0.00030136,6]
[385770537,1758030663440,-400.0,0.00030136,6]
[385770539,1758030663449,-400.0,0.00030136,6]
[385770541,1758030663459,-400.0,0.00030136,6]
[385770543,1758030663469,-401.40849599,0.00030136,6]
[385770545,1758030663479,-400.0,0.00030136,6]
[385770547,1758030663489,-400.0,0.00030136,6]
[385770549,1758030663499,-402.72011518,0.00030136,6]
[385770551,1758030663509,-1915.8,0.00030136,6]
[385770553,1758030663520,-521.58,0.00030136,6]
[385770555,1758030663531,-400.0,0.00030136,6]
[385770557,1758030663541,-400.0,0.00030136,6]
[385770559,1758030663551,-400.0,0.00030136,6]
[385770561,1758030663562,-400.0,0.00030136,6]
[385770563,1758030663572,-521.58,0.00030136,6]
[385770565,1758030663582,-400.0,0.00030136,6]
[385770567,1758030663595,-521.58,0.00030136,6]
[385770569,1758030663605,-521.58,0.00030136,6]
[385770571,1758030663615,-3072.83,0.00030136,6]
[385770573,1758030663625,-400.0,0.00030136,6]
[385770575,1758030663635,-400.0,0.00030136,6]
[385770577,1758030663646,-428.02,0.00030136,6]
[385770579,1758030663655,-1335.64,0.00030136,6]
[385770581,1758030663665,-521.58,0.00030136,6]
[385770583,1758030663675,-521.58,0.00030136,6]
[385770585,1758030663685,-521.58,0.00030136,6]
[385770587,1758030663695,-1656.96,0.00030136,6]
[385770589,1758030663705,-521.58,0.00030136,6]
[385770591,1758030663715,-403.13529865,0.00030136,6]
[385770593,1758030663725,-521.58,0.00030136,6]
[385770595,1758030663735,-400.0,0.00030136,6]
[385770597,1758030663745,-521.58,0.00030136,6]
[385770599,1758030663754,-400.0,0.00030136,6]
[385770601,1758030663763,-521.58,0.00030136,6]
[385770603,1758030663772,-521.58,0.00030136,6]
[385770605,1758030663782,-400.76428183,0.00030136,6]
[385770607,1758030663792,-521.58,0.00030136,6]
[385770609,1758030663802,-521.58,0.00030136,6]
[385770611,1758030663811,-521.58,0.00030136,6]
[385770613,1758030663821,-521.58,0.00030136,6]
[385770615,1758030663831,-400.0,0.00030136,6]
[385770617,1758030663844,-246.40645287,0.00030136,6]
[385770619,1758030663854,-618.88,0.00030136,6]
[385770621,1758030663863,-521.58,0.00030136,6]
[385770623,1758030663873,-521.58,0.00030136,6]
[385770625,1758030663883,-400.0,0.00030136,2]
[385770627,1758030663893,-400.0,0.00030136,6]
[385770629,1758030663904,-506.4,0.00030136,6]
[385770631,1758030663915,-400.0,0.00030136,6]
[385770633,1758030663925,-400.0,0.00030136,6]
[385770635,1758030663935,-400.0,0.00030136,6]
[385770637,1758030663946,-418.35,0.00030136,6]
[385770639,1758030663956,-402.93299605,0.00030136,6]
[385770641,1758030663965,-500.0,0.00030136,6]
[385770643,1758030663975,-400.0,0.00030136,6]
[385770645,1758030663985,-500.0,0.00030136,6]
[385770647,1758030663996,-1044.0,0.00030136,6]
[385770649,1758030664005,-500.0,0.00030136,6]
[385770651,1758030664014,-500.0,0.00030136,6]
[385770653,1758030664023,-500.0,0.00030136,6]
[385770655,1758030664032,-400.0,0.00030136,6]
[385770657,1758030664042,-500.0,0.00030136,6]
[385770659,1758030664051,-711.65,0.00030136,6]
[385770661,1758030664060,-400.0,0.00030136,6]
[385770663,1758030664069,-500.0,0.00030136,6]
[385770665,1758030664079,-500.0,0.00030136,6]
[385770667,1758030664094,-500.0,0.00030136,6]
[385770669,1758030664104,-400.0,0.00030136,6]
[385770671,1758030664114,-400.0,0.00030136,6]
[385770673,1758030664123,-500.0,0.00030136,6]
[385770675,1758030664132,-500.0,0.00030136,6]
[385770677,1758030664141,-500.0,0.00030136,6]
[385770679,1758030664151,-400.0,0.00030136,6]
[385770681,1758030664160,-400.0,0.00030136,6]
[385770683,1758030664170,-500.0,0.00030136,6]
[385770685,1758030664180,-433.97,0.00030136,6]
[385770687,1758030664189,-288.80695084,0.00030136,6]
[385770689,1758030664199,-400.0,0.00030136,6]
[385770691,1758030664208,-400.0,0.00030136,6]
[385770693,1758030664217,-400.0,0.00030136,6]
[385770695,1758030664226,-400.0,0.00030136,6]
[385770697,1758030664235,-400.0,0.00030136,6]
[385770699,1758030664245,-4649.21,0.00030136,6]
[385770701,1758030664255,-400.0,0.00030136,6]
[385770702,1758030664265,-400.0,0.00030136,6]
[385770704,1758030664275,-400.0,0.00030136,6]
[385770706,1758030664285,-461.66,0.00030136,6]
[385770708,1758030664295,-400.0,0.00030136,6]
[385770711,1758030664305,-400.0,0.00030136,6]
[385770712,1758030664314,-400.0,0.00030136,6]
[385770714,1758030664324,-400.0,0.00030136,6]
[385770716,1758030664333,-400.67281312,0.00030136,6]
[385770718,1758030664348,-400.0,0.00030136,6]
[385770720,1758030664358,-400.0,0.00030136,6]
[385770722,1758030664367,-400.0,0.00030136,6]
[385770724,1758030664377,-2203.43,0.00030136,6]
[385770726,1758030664386,-400.0,0.00030136,6]
[385770728,1758030664395,-400.0,0.00030136,6]
[385770730,1758030664404,-400.0,0.00030136,6]
[385770732,1758030664414,-400.0,0.00030136,6]
[385770734,1758030664423,-4196.7,0.00030136,6]
[385770735,1758030664433,-774.53,0.00030136,6]
[385770736,1758030664443,-1208.94,0.00030136,6]
[385770737,1758030664452,-400.0,0.00030136,6]
[385770738,1758030664461,-400.0,0.00030136,6]
[385770739,1758030664470,-926.17,0.00030136,6]
[385770740,1758030664480,-1032.12,0.00030136,6]
[385770742,1758030664490,-1174.23,0.00030136,6]
[385770744,1758030664500,-707.95,0.00030136,6]
[385770746,1758030664509,-153.49659548,0.00030136,2]
[385770748,1758030664518,-400.0,0.00030136,6]
[385770750,1758030664527,-400.0,0.00030136,6]
[385770752,1758030664537,-400.0,0.00030136,6]
[385770753,1758030664546,-400.0,0.00030136,6]
[385770755,1758030664556,-1316.82,0.00030136,6]
[385770757,1758030664566,-400.0,0.00030136,6]
[385770759,1758030664575,-400.0,0.00030136,6]
[385770762,1758030664592,-500.0,0.00030136,6]
[385770764,1758030664602,-500.0,0.00030136,6]
[385770766,1758030664612,-500.0,0.00030136,6]
[385770767,1758030664622,-400.0,0.00030136,6]
[385770768,1758030664632,-500.0,0.00030136,6]
[385770769,1758030664642,-500.0,0.00030136,6]
[385770770,1758030664652,-500.0,0.00030136,6]
[385770771,1758030664662,-500.0,0.00030136,6]
[385770772,1758030664672,-516.15,0.00030136,6]
[385770773,1758030664682,-500.0,0.00030136,6]
[385770774,1758030664692,-523.32239876,0.00030136,6]
[385770775,1758030664702,-678.56,0.00030136,6]
[385770776,1758030664714,-400.0,0.00030136,6]
[385770777,1758030664725,-776.58,0.00030136,6]
[385770778,1758030664735,-400.0,0.00030136,6]
[385770779,1758030664745,-400.0,0.00030136,6]
[385770780,1758030664754,-400.0,0.00030136,6]
[385770781,1758030664764,-401.18148742,0.00030136,6]
[385770782,1758030664773,-400.0,0.00030136,6]
[385770784,1758030664782,-400.0,0.00030136,6]
[385770785,1758030664792,-400.0,0.00030136,6]
[385770786,1758030664801,-400.0,0.00030136,6]
[385770787,1758030664811,-903.88,0.00030136,6]
[385770788,1758030664820,-473.32,0.00030136,6]
[385770789,1758030664829,-400.0,0.00030136,6]
[385770790,1758030664843,-500.0,0.00030136,6]
[385770791,1758030664852,-500.0,0.00030136,6]
[385770792,1758030664860,-160.01743868,0.00030136,6]
[385770793,1758030664869,-513.38,0.00030136,6]
[385770794,1758030664879,-425.13498608,0.00030136,6]
[385770795,1758030664888,-400.0,0.00030136,6]
[385770796,1758030664900,-400.0,0.00030136,6]
[385770797,1758030664909,-456.25,0.00030136,6]
[385770798,1758030664919,-400.0,0.00030136,6]
[385770816,1758030664929,-400.0,0.00030136,6]
[385770818,1758030665114,-400.0,0.00030136,6]
[385770820,1758030665124,-400.0,0.00030136,6]
[385770822,1758030665133,-400.0,0.00030136,6]
[385770824,1758030665143,-400.0,0.00030136,6]
[385770826,1758030665152,-728.15,0.00030136,6]
[385770828,1758030665162,-404.42968876,0.00030136,6]
[385770831,1758030665172,-400.0,0.00030136,6]
[385770833,1758030665181,-743.95,0.00030136,6]
[385770835,1758030665190,-400.0,0.00030136,6]
[385770836,1758030665200,-403.48491508,0.00030136,6]
[385770838,1758030665209,-400.0,0.00030136,6]
[385770840,1758030665218,-532.97,0.00030136,6]
[385770842,1758030665228,-400.0,0.00030136,6]
[385770845,1758030665237,-500.0,0.00030136,6]
[385770847,1758030665247,-441.97,0.00030136,6]
[385770848,1758030665256,-400.0,0.00030136,6]
[385770850,1758030665265,-500.0,0.00030136,6]
[385770852,1758030665274,-400.0,0.00030136,6]
[385770854,1758030665284,-502.41265883,0.00030136,6]
[385770857,1758030665294,-400.0,0.00030136,6]
[385770858,1758030665303,-925.4,0.00030136,6]
[385770861,1758030665313,-500.0,0.00030136,6]
[385770863,1758030665323,-1329.08,0.00030136,6]
[385770864,1758030665339,-403.01468795,0.00030136,6]
[385770866,1758030665349,-518.84,0.00030136,6]
[385770868,1758030665358,-506.24941595,0.00030136,6]
[385770870,1758030665368,-400.0,0.00030136,6]
[385770872,1758030665377,-1055.05,0.00030136,6]
[385770874,1758030665387,-1170.07,0.00030136,6]
[385770876,1758030665396,-400.0,0.00030136,6]
[385770877,1758030665405,-400.0,0.00030136,6]
[385770878,1758030665415,-400.0,0.00030136,6]
[385770879,1758030665424,-604.86,0.00030136,6]
[385770880,1758030665435,-400.0,0.00030136,6]
[385770881,1758030665444,-400.0,0.00030136,6]
[385770883,1758030665453,-200.0,0.00030137,2]
[385770884,1758030665462,-200.0,0.00030137,2]
[385770886,1758030665472,-1939.1723111,0.00030137,2]
[385770888,1758030665481,-200.0,0.00030137,2]
[385770890,1758030665490,-2500.0,0.00030164,5]
[385770892,1758030665499,-309.29654756,0.00030165,2]
[385770894,1758030665509,-502.29989803,0.00030173,5]
[385770896,1758030665519,-167.46046945,0.00030173,5]
[385770898,1758030665529,-500.0,0.00030173,5]
[385770900,1758030665539,-500.0,0.00030173,5]
[385770902,1758030665548,-500.0,0.00030173,5]
[385770904,1758030665558,-514.83774384,0.00030173,5]
[385770906,1758030665568,-502.12885838,0.00030173,5]
[385770908,1758030665577,-503.01692135,0.00030173,5]
[385770910,1758030665593,-519.52184494,0.00030173,5]
[385770912,1758030665602,-203.0,0.000302,2]
[385770914,1758030665612,-173.0,0.00030205,14]
[385770916,1758030665622,-433.08628,0.0003023,2]
[385770918,1758030665632,-6158.54100694,0.0003031,2]
[385770920,1758030665642,-361.0,0.0003032,2]
[385770922,1758030665652,-151.0,0.00030365,2]
[385770924,1758030665662,-884.0,0.00030384,3]
[385770926,1758030665671,-518.33,0.00030409,6]
[385770928,1758030665681,-518.33,0.00030409,6]
[385770930,1758030665691,-518.33,0.00030409,6]
[385770932,1758030665700,-518.33,0.00030409,6]
[385770934,1758030665710,-518.33,0.00030409,6]
[385770936,1758030665720,-518.39221168,0.00030409,6]
[385770938,1758030665730,-531.52,0.00030409,6]
[385770940,1758030665739,-531.52,0.00030409,6]
[385770942,1758030665749,-531.52,0.00030409,6]
[385770944,1758030665758,-531.52,0.00030409,6]
[385770946,1758030665768,-531.52,0.00030409,6]
[385770948,1758030665779,-531.61596553,0.00030409,6]
[385770950,1758030665788,-598.17,0.00030409,2]
[385770952,1758030665799,-598.17,0.00030409,2]
[385770954,1758030665809,-598.17,0.00030409,2]
[385770956,1758030665818,-598.17,0.00030409,2]
[385770958,1758030665828,-598.17,0.00030409,2]
[385770960,1758030665846,-598.17,0.00030409,2]
[385770962,1758030665855,-521.58,0.00030409,6]
[385770964,1758030665865,-521.58,0.00030409,6]
[385770966,1758030665874,-521.58,0.00030409,6]